fUSD/lending_fUSD_20250209
["ID","MTS","AMOUNT","RATE_DAILY","PERIOD"]
[352368293,1739064651622,-349.862216,0.00010407,2]
[352368294,1739064651631,-500.0,0.00010407,2]
[352368295,1739064651641,-500.0,0.00010407,2]
[352368296,1739064651650,-500.0,0.00010407,2]
[352368297,1739064651659,-500.0,0.00010407,2]
[352368298,1739064651668,-500.0,0.00010407,2]
[352368299,1739064651677,-500.0,0.00010407,2]
[352368300,1739064651690,-500.0,0.00010407,2]
[352368301,1739064651699,-500.0,0.00010407,2]
[352368302,1739064651709,-500.0,0.00010407,2]
[352368303,1739064651718,-500.0,0.00010407,2]
[352368304,1739064651728,-500.0,0.00010407,2]
[352368305,1739064651737,-500.0,0.00010407,2]
[352368306,1739064651746,-500.0,0.00010407,2]
[352368307,1739064651755,-500.0,0.00010407,2]
[352368308,1739064651767,-500.0,0.00010407,2]
[352368309,1739064651776,-624.99065089,0.00010407,2]
[352368310,1739064651785,-4807.33,0.00010407,2]
[352368311,1739064651800,-500.0,0.00010407,2]
[352368312,1739064651811,-500.0,0.00010407,2]
[352368313,1739064651824,-500.0,0.00010407,2]
[352368314,1739064651837,-500.0,0.00010407,2]
[352368315,1739064651849,-858.03,0.00010407,2]
[352368316,1739064651859,-500.0,0.00010407,2]
[352368317,1739064651870,-500.0,0.00010407,2]
[352368318,1739064651882,-921.88,0.00010407,2]
[352368319,1739064651894,-500.0,0.00010407,2]
[352368320,1739064651905,-500.0,0.00010407,2]
[352368321,1739064651919,-500.0,0.00010407,2]
[352368322,1739064651931,-824.93,0.00010407,2]
[352368323,1739064651945,-505.22067381,0.00010407,2]
[352368324,1739064651957,-2677.06,0.00010407,2]
[352368325,1739064651969,-500.0,0.00010407,2]
[352368326,1739064651982,-500.0,0.00010407,2]
[352368327,1739064651994,-500.0,0.00010407,2]
[352368328,1739064652006,-307.78,0.00010407,2]
[352368329,1739064652018,-500.0,0.00010407,2]
[352368330,1739064652030,-1057.44,0.00010407,2]
[352368331,1739064652041,-545.13,0.00010407,2]
[352368332,1739064652053,-500.0,0.00010407,2]
[352368333,1739064652065,-500.0,0.00010407,2]
[352368334,1739064652077,-1172.16,0.00010407,2]
[352368335,1739064652091,-500.0,0.00010407,2]
[352368336,1739064652105,-1000.0,0.00010407,2]
[352368337,1739064652119,-500.0,0.00010407,2]
[352368338,1739064652131,-922.59,0.00010407,2]
[352368339,1739064652144,-500.0,0.00010407,2]
[352368340,1739064652156,-500.0,0.00010407,2]
[352368341,1739064652169,-500.0,0.00010407,2]
[352368342,1739064652179,-523.84814292,0.00010407,2]
[352368343,1739064652191,-500.0,0.00010407,2]
[352368344,1739064652203,-1998.27,0.00010407,2]
[352368345,1739064652216,-500.0,0.00010407,2]
[352368346,1739064652228,-500.0,0.00010407,2]
[352368347,1739064652239,-2158.17,0.00010407,2]
[352368348,1739064652250,-500.0,0.00010407,2]
[352368349,1739064652260,-500.0,0.00010407,2]
[352368350,1739064652271,-500.0,0.00010407,2]
[352368351,1739064652282,-500.0,0.00010407,2]
[352368352,1739064652295,-500.0,0.00010407,2]
[352368353,1739064652308,-500.0,0.00010407,2]
[352368354,1739064652318,-500.0,0.00010407,2]
[352368355,1739064652328,-500.0,0.00010407,2]
[352368356,1739064652338,-500.0,0.00010407,2]
[352368357,1739064652349,-500.0,0.00010407,2]
[352368358,1739064652362,-505.29869288,0.00010407,2]
[352368359,1739064652374,-500.0,0.00010407,2]
[352368360,1739064652386,-500.0,0.00010407,2]
[352368361,1739064652397,-500.0,0.00010407,2]
[352368362,1739064652407,-500.0,0.00010407,2]
[352368363,1739064652419,-500.0,0.00010407,2]
[352368364,1739064652431,-581.43191735,0.00010407,2]
[352368365,1739064652442,-500.0,0.00010408,2]
[352368366,1739064652454,-500.0,0.00010408,2]
[352368367,1739064652465,-500.0,0.00010408,2]
[352368368,1739064652476,-500.0,0.00010408,2]
[352368369,1739064652487,-500.0,0.00010408,2]
[352368370,1739064652498,-500.0,0.00010408,2]
[352368371,1739064652509,-500.0,0.00010408,2]
[352368372,1739064652521,-500.0,0.00010408,2]
[352368373,1739064652533,-500.0,0.00010408,2]
[352368374,1739064652544,-500.0,0.00010408,2]
[352368375,1739064652555,-500.0,0.00010408,2]
[352368376,1739064652566,-500.0,0.00010408,2]
[352368377,1739064652577,-500.0,0.00010408,2]
[352368378,1739064652588,-500.0,0.00010408,2]
[352368379,1739064652599,-500.0,0.00010408,2]
[352368380,1739064652610,-500.0,0.0001041,2]
[352368381,1739064652621,-500.0,0.0001041,2]
[352368382,1739064652632,-500.0,0.0001041,2]
[352368383,1739064652644,-500.0,0.0001041,2]
[352368384,1739064652655,-500.0,0.0001041,2]
[352368385,1739064652666,-500.0,0.0001041,2]
[352368386,1739064652677,-500.0,0.0001041,2]
[352368387,1739064652691,-221.67787177,0.0001041,2]
[352368388,1739064652702,-500.0,0.0001041,2]
[352368389,1739064652713,-500.0,0.0001041,2]
[352368390,1739064652723,-500.0,0.0001041,2]
[352368391,1739064652736,-500.0,0.0001041,2]
[352368392,1739064652746,-500.0,0.0001041,2]
[352368393,1739064652757,-500.0,0.0001041,2]
[352368394,1739064652769,-500.0,0.0001041,2]
[352368395,1739064652780,-500.0,0.0001041,2]
[352368396,1739064652791,-500.0,0.0001041,2]
[352368397,1739064652802,-500.0,0.0001041,2]
[352368398,1739064652813,-500.0,0.0001041,2]
[352368399,1739064652826,-500.0,0.0001041,2]
[352368400,1739064652837,-500.0,0.0001041,2]
[352368401,1739064652849,-500.0,0.0001041,2]
[352368402,1739064652859,-500.0,0.0001041,2]
[352368403,1739064652871,-500.0,0.0001041,2]
[352368404,1739064652882,-500.0,0.0001041,2]
[352368405,1739064652893,-500.0,0.0001041,2]
[352368406,1739064652904,-619.81,0.0001041,2]
[352368407,1739064652916,-500.0,0.0001041,2]
[352368408,1739064652926,-500.0,0.0001041,2]
[352368409,1739064652937,-500.0,0.0001041,2]
[352368410,1739064652949,-500.0,0.0001041,2]
[352368411,1739064652959,-500.0,0.0001041,2]
[352368412,1739064652971,-500.0,0.0001041,2]
[352368413,1739064652982,-429.40271887,0.0001041,2]
[352368414,1739064652992,-500.0,0.0001041,2]
[352368415,1739064653003,-500.0,0.0001041,2]
[352368416,1739064653014,-324.54,0.0001041,2]
[352368417,1739064653025,-500.0,0.0001041,2]
[352368418,1739064653036,-500.0,0.0001041,2]
[352368419,1739064653047,-524.48,0.0001041,2]
[352368420,1739064653058,-151.0,0.0001041,2]
[352368421,1739064653068,-592.79,0.0001041,2]
[352368422,1739064653080,-500.0,0.0001041,2]
[352368423,1739064653091,-500.0,0.0001041,2]
[352368424,1739064653102,-500.0,0.0001041,2]
[352368425,1739064653112,-500.0,0.0001041,2]
[352368426,1739064653123,-500.0,0.0001041,2]
[352368427,1739064653134,-500.0,0.0001041,2]
[352368428,1739064653144,-500.0,0.0001041,2]
[352368429,1739064653155,-500.0,0.0001041,2]
[352368430,1739064653167,-500.0,0.0001041,2]
[352368431,1739064653178,-500.0,0.0001041,2]
[352368432,1739064653189,-500.0,0.0001041,2]
[352368433,1739064653200,-500.0,0.0001041,2]
[352368434,1739064653211,-500.0,0.0001041,2]
[352368435,1739064653221,-500.0,0.0001041,2]
[352368436,1739064653232,-500.0,0.0001041,2]
[352368437,1739064653244,-500.0,0.0001041,2]
[352368438,1739064653255,-500.0,0.0001041,2]
[352368439,1739064653265,-500.0,0.0001041,2]
[352368440,1739064653277,-524.96,0.0001041,2]
[352368441,1739064653288,-468.94149252,0.0001041,2]
[352368442,1739064653299,-538.42,0.0001041,2]
[352368443,1739064653310,-500.0,0.0001041,2]
[352368444,1739064653320,-500.0,0.0001041,2]
[352368445,1739064653331,-500.0,0.0001041,2]
[352368446,1739064653343,-517.99,0.0001041,2]
[352368447,1739064653353,-500.0,0.0001041,2]
[352368448,1739064653365,-500.0,0.0001041,2]
[352368449,1739064653377,-500.0,0.0001041,2]
[352368450,1739064653388,-500.0,0.0001041,2]
[352368451,1739064653400,-500.0,0.0001041,2]
[352368452,1739064653411,-500.0,0.0001041,2]
[352368453,1739064653423,-500.0,0.0001041,2]
[352368454,1739064653435,-829.9,0.0001044,2]
[352368455,1739064653446,-426.25224996,0.0001048,2]
[352368456,1739064653456,-1600.0,0.000105,3]
[352368457,1739064653467,-500.0,0.00010541,2]
[352368458,1739064653478,-500.0,0.00010541,2]
[352368459,1739064653489,-500.0,0.00010541,2]
[352368460,1739064653499,-1135.49,0.00010541,2]
[352368461,1739064653510,-1491.25,0.00010541,2]
[352368462,1739064653521,-500.0,0.00010541,2]
[352368463,1739064653531,-1096.4,0.00010541,2]
[352368464,1739064653542,-1926.31,0.00010541,2]
[352368465,1739064653553,-1553.33,0.00010541,2]
[352368466,1739064653564,-524.3,0.00010541,2]
[352368467,1739064653575,-1505.29,0.00010541,2]
[352368468,1739064653586,-500.0,0.00010541,2]
[352368469,1739064653598,-500.0,0.00010541,2]
[352368470,1739064653608,-765.69,0.00010541,2]
[352368471,1739064653619,-500.0,0.00010541,2]
[352368472,1739064653630,-500.0,0.00010541,2]
[352368473,1739064653640,-500.0,0.00010541,2]
[352368474,1739064653652,-1250.11,0.00010541,2]
[352368475,1739064653663,-500.0,0.00010541,2]
[352368476,1739064653674,-500.0,0.00010541,2]
[352368477,1739064653686,-500.0,0.00010541,2]
[352368478,1739064653699,-1265.23,0.00010542,2]
[352368479,1739064653710,-942.17,0.00010542,2]
[352368480,1739064653721,-571.56,0.00010542,2]
[352368481,1739064653734,-608.72,0.00010542,2]
[352368482,1739064653745,-903.56,0.00010542,2]
[352368483,1739064653757,-761.356549,0.00010542,2]
[352368484,1739064653768,-1567.35,0.00010542,2]
[352368485,1739064653779,-500.0,0.00010542,2]
[352368486,1739064653791,-500.0,0.00010542,2]
[352368487,1739064653803,-1529.17,0.00010542,2]
[352368488,1739064653814,-820.43,0.00010542,2]
[352368489,1739064653825,-2229.24,0.00010542,2]
[352368490,1739064653838,-614.12,0.00010542,2]
[352368491,1739064653850,-635.519756,0.00010542,2]
[352368492,1739064653862,-824.85,0.00010542,2]
[352368493,1739064653873,-1108.77,0.00010542,2]
[352368494,1739064653884,-500.0,0.00010542,2]
[352368495,1739064653896,-1431.97,0.00010542,2]
[352368496,1739064653909,-1577.26,0.00010542,2]
[352368497,1739064653920,-750.94,0.00010542,2]
[352368498,1739064653931,-1128.64,0.00010542,2]
[352368499,1739064653943,-985.47,0.00010542,2]
[352368500,1739064653955,-1364.15,0.00010542,2]
[352368501,1739064653965,-2826.52,0.00010542,2]
[352368502,1739064653976,-2171.01,0.00010542,2]
[352368503,1739064653987,-1345.65,0.00010542,2]
[352368504,1739064653998,-757.14,0.00010542,2]
[352368505,1739064654010,-500.0,0.00010542,2]
[352368506,1739064654020,-500.0,0.00010542,2]
[352368507,1739064654031,-1180.09,0.00010542,2]
[352368508,1739064654042,-500.0,0.00010542,2]
[352368509,1739064654053,-500.0,0.00010542,2]
[352368510,1739064654064,-1527.24,0.00010542,2]
[352368511,1739064654073,-1297.73,0.00010542,2]
[352368512,1739064654083,-879.7,0.00010542,2]
[352368513,1739064654093,-661.94,0.00010542,2]
[352368514,1739064654102,-1376.76,0.00010542,2]
[352368515,1739064654394,-500.0,0.00010542,2]
[352368516,1739064654415,-1567.33,0.00010542,2]
[352368517,1739064654428,-500.0,0.00010542,2]
[352368518,1739064654438,-1076.91,0.00010542,2]
[352368519,1739064654447,-2050.57,0.00010542,2]
[352368520,1739064654457,-593.35,0.00010542,2]
[352368521,1739064654466,-650.17,0.00010543,2]
[352368522,1739064654476,-500.0,0.00010543,2]
[352368523,1739064654486,-500.0,0.00010543,2]
[352368524,1739064654496,-500.0,0.00010543,2]
[352368525,1739064654505,-500.0,0.00010543,2]
[352368526,1739064654515,-676.84,0.00010543,2]
[352368527,1739064654524,-500.0,0.00010543,2]
[352368528,1739064654534,-507.8598162,0.00010543,2]
[352368529,1739064654543,-500.0,0.00010543,2]
[352368530,1739064654552,-546.96,0.00010543,2]
[352368531,1739064654561,-500.0,0.00010543,2]
[352368532,1739064654571,-500.0,0.00010543,2]
[352368533,1739064654581,-500.0,0.00010543,2]
[352368534,1739064654590,-500.0,0.00010543,2]
[352368535,1739064654600,-500.0,0.00010543,2]
[352368536,1739064654609,-500.0,0.00010543,2]
[352368537,1739064654619,-576.95,0.00010543,2]
[352368538,1739064654628,-500.0,0.00010543,2]
[352368539,1739064654638,-500.0,0.00010543,2]
[352368540,1739064654647,-500.0,0.00010543,2]
[352368541,1739064654656,-416.17955906,0.00010543,2]
[352368542,1739064654667,-500.0,0.00010543,2]
[352368543,1739064654676,-500.0,0.00010543,2]
[352368544,1739064654686,-525.03,0.00010543,2]
[352368545,1739064654700,-688.22,0.00010543,2]
[352368546,1739064654709,-297.92,0.00010543,2]
[352368547,1739064654719,-500.0,0.00010543,2]
[352368548,1739064654728,-500.0,0.00010543,2]
[352368549,1739064654738,-500.0,0.00010543,2]
[352368550,1739064654748,-751.95,0.00010543,2]
[352368551,1739064654757,-500.0,0.00010543,2]
[352368552,1739064654767,-500.0,0.00010543,2]
[352368553,1739064654777,-500.0,0.00010543,2]
[352368554,1739064654787,-500.0,0.00010543,2]
[352368555,1739064654796,-751.58,0.00010543,2]
[352368556,1739064654806,-500.0,0.00010543,2]
[352368557,1739064654815,-500.0,0.00010543,2]
[352368558,1739064654824,-500.0,0.00010543,2]
[352368559,1739064654834,-713.69,0.00010543,2]
[352368560,1739064654843,-500.0,0.00010543,2]
[352368561,1739064654854,-500.0,0.00010543,2]
[352368562,1739064654863,-500.0,0.00010543,2]
[352368563,1739064654873,-500.0,0.00010543,2]
[352368564,1739064654882,-500.0,0.00010543,2]
[352368565,1739064654892,-743.85,0.00010543,2]
[352368566,1739064654901,-778.11,0.00010543,2]
[352368567,1739064654911,-686.06,0.00010543,2]
[352368568,1739064654922,-500.0,0.00010543,2]
[352368569,1739064654931,-500.0,0.00010543,2]
[352368570,1739064654941,-500.0,0.00010543,2]
[352368571,1739064654950,-500.0,0.00010543,2]
[352368572,1739064654959,-500.0,0.00010543,2]
[352368573,1739064654969,-640.12,0.00010543,2]
[352368574,1739064654979,-625.79,0.00010543,2]
[352368575,1739064654988,-596.1087911,0.00010543,2]
[352368576,1739064654997,-500.0,0.00010543,2]
[352368577,1739064655007,-500.0,0.00010543,2]
[352368578,1739064655016,-620.92,0.00010543,2]
[352368579,1739064655026,-677.96,0.00010543,2]
[352368580,1739064655036,-500.0,0.00010543,2]
[352368581,1739064655046,-500.0,0.00010543,2]
[352368582,1739064655056,-500.0,0.00010543,2]
[352368583,1739064655065,-500.0,0.00010543,2]
[352368584,1739064655075,-500.0,0.00010543,2]
[352368585,1739064655085,-500.0,0.00010543,2]
[352368586,1739064655094,-2934.3,0.00010543,2]
[352368587,1739064655104,-500.0,0.00010543,2]
[352368588,1739064655114,-1525.17,0.00010543,2]
[352368589,1739064655123,-774.95,0.00010543,2]
[352368590,1739064655133,-1829.66,0.00010543,2]
[352368591,1739064655142,-789.04,0.00010543,2]
[352368592,1739064655152,-997.18,0.00010543,2]
[352368593,1739064655161,-1816.27,0.00010543,2]
[352368594,1739064655171,-500.0,0.00010543,2]
[352368595,1739064655180,-1562.18,0.00010543,2]
[352368596,1739064655190,-680.61,0.00010543,2]
[352368597,1739064655199,-500.0,0.00010543,2]
[352368598,1739064655209,-500.0,0.00010543,2]
[352368599,1739064655218,-1099.38,0.00010543,2]
[352368600,1739064655228,-500.0,0.00010543,2]
[352368601,1739064655237,-500.0,0.00010543,2]
[352368602,1739064655246,-533.58,0.00010543,2]
[352368603,1739064655255,-1750.36,0.00010543,2]
[352368604,1739064655265,-500.0,0.00010543,2]
[352368605,1739064655274,-500.0,0.00010543,2]
[352368606,1739064655283,-500.0,0.00010543,2]
[352368607,1739064655292,-1168.81,0.00010543,2]
[352368608,1739064655302,-500.0,0.00010543,2]
[352368609,1739064655311,-919.27,0.00010543,2]
[352368610,1739064655320,-500.0,0.00010543,2]
[352368611,1739064655329,-635.21,0.00010543,2]
[352368612,1739064655339,-500.0,0.00010543,2]
[352368613,1739064655348,-500.0,0.00010543,2]
[352368614,1739064655358,-500.0,0.00010543,2]
[352368615,1739064655367,-2329.56,0.00010543,2]
[352368616,1739064655376,-841.19,0.00010543,2]
[352368617,1739064655386,-731.35,0.00010543,2]
[352368618,1739064655395,-830.41,0.00010543,2]
[352368619,1739064655404,-880.9,0.00010543,2]
[352368620,1739064655414,-500.0,0.00010543,2]
[352368621,1739064655423,-500.0,0.00010543,2]
[352368622,1739064655433,-523.25,0.00010543,2]
[352368623,1739064655443,-500.0,0.00010543,2]
[352368624,1739064655452,-565.26,0.00010543,2]
[352368625,1739064655461,-610.98,0.00010543,2]
[352368626,1739064655470,-500.0,0.00010543,2]
[352368627,1739064655479,-500.0,0.00010543,2]
[352368628,1739064655489,-1181.58,0.00010543,2]
[352368629,1739064655498,-500.0,0.00010543,2]
[352368630,1739064655508,-2957.55,0.00010543,2]
[352368631,1739064655518,-1035.92,0.00010543,2]
[352368632,1739064655527,-525.11,0.00010543,2]
[352368633,1739064655536,-1347.93,0.00010543,2]
[352368634,1739064655546,-666.15,0.00010543,2]
[352368635,1739064655555,-500.0,0.00010543,2]
[352368636,1739064655564,-1814.49,0.00010543,2]
[352368637,1739064655574,-500.0,0.00010544,2]
[352368638,1739064655583,-500.0,0.00010544,2]
[352368639,1739064655592,-500.0,0.00010544,2]
[352368640,1739064655601,-500.0,0.00010544,2]
[352368641,1739064655610,-500.0,0.00010544,2]
[352368642,1739064655621,-500.0,0.00010544,2]
[352368643,1739064655630,-500.0,0.00010544,2]
[352368644,1739064655640,-273.00659887,0.00010544,2]
[352368645,1739064655651,-500.0,0.00010544,2]
[352368646,1739064655661,-500.0,0.00010544,2]
[352368647,1739064655671,-500.0,0.00010544,2]
[352368648,1739064655683,-500.0,0.00010544,2]
[352368649,1739064655696,-500.0,0.00010544,2]
[352368650,1739064655705,-500.0,0.00010544,2]
[352368651,1739064655714,-500.0,0.00010544,2]
[352368652,1739064655723,-500.0,0.00010544,2]
[352368653,1739064655734,-500.0,0.00010544,2]
[352368654,1739064655744,-500.0,0.00010544,2]
[352368655,1739064655753,-500.0,0.00010544,2]
[352368656,1739064655765,-500.0,0.00010544,2]
[352368657,1739064655775,-500.0,0.00010544,2]
[352368658,1739064655784,-500.0,0.00010544,2]
[352368659,1739064655794,-500.0,0.00010544,2]
[352368660,1739064655806,-437.80617409,0.00010544,2]
[352368661,1739064655816,-500.0,0.00010544,2]
[352368662,1739064655828,-500.0,0.00010544,2]
[352368663,1739064655839,-500.0,0.00010544,2]
[352368664,1739064655849,-500.0,0.00010544,2]
[352368665,1739064655859,-500.0,0.00010544,2]
[352368666,1739064655870,-500.0,0.00010544,2]
[352368667,1739064655880,-500.0,0.00010544,2]
[352368668,1739064655892,-500.0,0.00010544,2]
[352368669,1739064655902,-500.0,0.00010544,2]
[352368670,1739064655911,-500.0,0.00010544,2]
[352368671,1739064655921,-500.0,0.00010544,2]
[352368672,1739064655931,-333.12225595,0.00010544,2]
[352368673,1739064655943,-500.0,0.00010544,2]
[352368674,1739064655953,-500.0,0.00010544,2]
[352368675,1739064655963,-500.0,0.00010544,2]
[352368676,1739064655972,-500.0,0.00010544,2]
[352368677,1739064655981,-500.0,0.00010544,2]
[352368678,1739064655992,-500.0,0.00010544,2]
[352368679,1739064656002,-500.0,0.00010544,2]
[352368680,1739064656011,-507.43766317,0.00010544,2]
[352368681,1739064656021,-500.0,0.00010544,2]
[352368682,1739064656030,-500.0,0.00010544,2]
[352368683,1739064656040,-500.0,0.00010544,2]
[352368684,1739064656049,-500.0,0.00010544,2]
[352368685,1739064656058,-500.0,0.00010544,2]
[352368686,1739064656067,-500.0,0.00010544,2]
[352368687,1739064656076,-500.0,0.00010544,2]
[352368688,1739064656086,-500.0,0.00010544,2]
[352368689,1739064656096,-500.0,0.00010544,2]
[352368690,1739064656106,-541.4271701,0.00010544,2]
[352368691,1739064656117,-500.0,0.00010544,2]
[352368692,1739064656128,-500.0,0.00010544,2]
[352368693,1739064656138,-500.0,0.00010544,2]
[352368694,1739064656148,-500.0,0.00010544,2]
[352368695,1739064656157,-500.0,0.00010544,2]
[352368696,1739064656166,-500.0,0.00010544,2]
[352368697,1739064656175,-500.0,0.00010544,2]
[352368698,1739064656185,-500.0,0.00010544,2]
[352368699,1739064656194,-500.0,0.00010544,2]
[352368700,1739064656203,-500.0,0.00010544,2]
[352368701,1739064656212,-500.0,0.00010544,2]
[352368702,1739064656221,-500.0,0.00010544,2]
[352368703,1739064656230,-500.0,0.00010544,2]
[352368704,1739064656239,-4807.33,0.00010544,2]
[352368705,1739064656249,-500.0,0.00010544,2]
[352368706,1739064656258,-500.0,0.00010544,2]
[352368707,1739064656267,-500.0,0.00010544,2]
[352368708,1739064656276,-858.03,0.00010544,2]
[352368709,1739064656285,-500.0,0.00010544,2]
[352368710,1739064656294,-500.0,0.00010544,2]
[352368711,1739064656303,-921.88,0.00010544,2]
[352368712,1739064656313,-500.0,0.00010544,2]
[352368713,1739064656322,-500.0,0.00010544,2]
[352368714,1739064656331,-500.0,0.00010544,2]
[352368715,1739064656340,-824.93,0.00010544,2]
[352368716,1739064656349,-2677.06,0.00010544,2]
[352368717,1739064656358,-500.0,0.00010544,2]
[352368718,1739064656367,-500.0,0.00010544,2]
[352368719,1739064656377,-500.0,0.00010544,2]
[352368720,1739064656386,-500.0,0.00010544,2]
[352368721,1739064656395,-1057.44,0.00010544,2]
[352368722,1739064656404,-500.0,0.00010544,2]
[352368723,1739064656414,-1172.16,0.00010544,2]
[352368724,1739064656423,-500.0,0.00010544,2]
[352368725,1739064656433,-1000.0,0.00010544,2]
[352368726,1739064656442,-500.0,0.00010544,2]
[352368727,1739064656451,-922.59,0.00010544,2]
[352368728,1739064656461,-500.0,0.00010544,2]
[352368729,1739064656470,-500.0,0.00010544,2]
[352368730,1739064656479,-500.0,0.00010544,2]
[352368731,1739064656488,-500.0,0.00010544,2]
[352368732,1739064656497,-1998.27,0.00010544,2]
[352368733,1739064656507,-500.0,0.00010544,2]
[352368734,1739064656516,-500.0,0.00010544,2]
[352368735,1739064656525,-2158.17,0.00010544,2]
[352368736,1739064656535,-500.0,0.00010544,2]
[352368737,1739064656543,-500.0,0.00010544,2]
[352368738,1739064656552,-500.0,0.00010544,2]
[352368739,1739064656562,-500.0,0.00010544,2]
[352368740,1739064656571,-319.63951945,0.00010544,2]
[352368741,1739064656580,-500.0,0.00010544,2]
[352368742,1739064656590,-500.0,0.00010544,2]
[352368743,1739064656599,-561.8,0.00010544,2]
[352368744,1739064656608,-500.0,0.00010544,2]
[352368745,1739064656617,-500.0,0.00010544,2]
[352368746,1739064656626,-500.0,0.00010544,2]
[352368747,1739064656635,-500.0,0.00010544,2]
[352368748,1739064656644,-508.7498877,0.00010544,2]
[352368749,1739064656653,-500.0,0.00010544,2]
[352368750,1739064656662,-500.0,0.00010544,2]
[352368751,1739064656672,-500.0,0.00010545,2]
[352368752,1739064656681,-500.0,0.00010545,2]
[352368753,1739064656694,-500.0,0.00010545,2]
[352368754,1739064656703,-500.0,0.00010545,2]
[352368755,1739064656713,-500.0,0.00010545,2]
[352368756,1739064656722,-500.0,0.00010545,2]
[352368757,1739064656731,-500.0,0.00010545,2]
[352368758,1739064656741,-500.0,0.00010545,2]
[352368759,1739064656750,-500.0,0.00010545,2]
[352368760,1739064656759,-500.0,0.00010547,2]
[352368761,1739064656769,-257.2208222,0.00010547,2]
[352368762,1739064656778,-500.0,0.00010547,2]
[352368763,1739064656787,-500.0,0.00010547,2]
[352368764,1739064656797,-500.0,0.00010547,2]
[352368765,1739064656806,-382.6,0.00010547,2]
[352368766,1739064656815,-500.0,0.00010547,2]
[352368767,1739064656824,-500.0,0.00010547,2]
[352368768,1739064656833,-500.0,0.00010547,2]
[352368769,1739064656843,-500.0,0.00010547,2]
[352368770,1739064656852,-592.25,0.00010547,2]
[352368771,1739064656862,-500.0,0.00010547,2]
[352368772,1739064656871,-412.64,0.00010547,2]
[352368773,1739064656881,-272.24,0.00010547,2]
[352368774,1739064656891,-500.0,0.00010547,2]
[352368775,1739064656900,-558.66,0.00010547,2]
[352368776,1739064656909,-500.0,0.00010547,2]
[352368777,1739064656918,-587.07978421,0.00010547,2]
[352368778,1739064656928,-500.0,0.00010547,2]
[352368779,1739064656937,-239.24,0.00010547,2]
[352368780,1739064656946,-500.0,0.00010547,2]
[352368781,1739064656955,-500.0,0.00010547,2]
[352368782,1739064656965,-500.0,0.00010547,2]
[352368783,1739064656975,-500.0,0.00010547,2]
[352368784,1739064656986,-152.92,0.00010547,2]
[352368785,1739064656996,-500.0,0.00010547,2]
[352368786,1739064657005,-500.0,0.00010547,2]
[352368787,1739064657014,-500.0,0.00010547,2]
[352368788,1739064657024,-500.0,0.00010547,2]
[352368789,1739064657036,-500.0,0.00010547,2]
[352368790,1739064657046,-500.0,0.00010547,2]
[352368791,1739064657055,-170.71,0.00010547,2]
[352368792,1739064657065,-151.0,0.00010547,2]